[Event "10th Tal Memorial 2016 - Blitz"]
[Site "Moscow"]
[Date "2016.09.25"]
[Round "4"]
[White "Aronian, Levon"]
[Black "Anand, Viswanathan"]
[Result "1/2-1/2"]
[ECO "A14"]
[WhiteElo "2795"]
[BlackElo "2776"]
[Annotator "ChessBase"]
[PlyCount "98"]
[EventDate "2016.??.??"]
[EventType "tourn"]
[EventCountry "RUS"]
[SourceTitle "playchess.com"]
[Source "ChessBase"]
[TimeControl "180+2"]

1. c4 {[%emt 0:00:00]} c5 {[%emt 0:00:00]} 2. Nf3 {[%emt 0:00:02]} Nc6 {
[%emt 0:00:00]} 3. Nc3 {[%emt 0:00:02]} Nf6 {[%emt 0:00:02]} 4. g3 {[%emt 0:00:
02]} d5 {[%emt 0:00:01]} 5. cxd5 {[%emt 0:00:01]} Nxd5 {[%emt 0:00:02]} 6. Bg2
{[%emt 0:00:01]} e6 {[%emt 0:00:01]} 7. O-O {[%emt 0:00:01]} Be7 {[%emt 0:00:
00]} 8. d4 {[%emt 0:00:02]} O-O {[%emt 0:00:03]} 9. e4 {[%emt 0:00:07]} Ndb4 {
[%emt 0:00:04]} 10. dxc5 {[%emt 0:00:07]} Bxc5 {[%emt 0:00:02]} 11. e5 {
[%emt 0:00:07]} Bb6 {[%emt 0:00:08]} 12. Bg5 {[%emt 0:00:25]} Qxd1 {[%emt 0:00:
03]} 13. Raxd1 {[%emt 0:00:01]} h6 {[%emt 0:00:03]} 14. Bc1 {[%emt 0:00:01]}
Ne7 {[%emt 0:00:13]} 15. Nd2 {[%emt 0:00:20]} Nbd5 {[%emt 0:00:18]} 16. Nc4 {
[%emt 0:00:08]} Bd7 {[%emt 0:00:01]} 17. Nxd5 {[%emt 0:00:25]} Nxd5 {[%emt 0:
00:04]} 18. Bxd5 {[%emt 0:00:03]} exd5 {[%emt 0:00:02]} 19. Rxd5 {[%emt 0:00:
10]} Be6 {[%emt 0:00:02]} 20. Nxb6 {[%emt 0:00:02]} axb6 {[%emt 0:00:01]} 21.
Rd6 {[%emt 0:00:02]} Rxa2 {[%emt 0:00:06]} 22. Rxb6 {[%emt 0:00:01]} Bh3 {
[%emt 0:00:16]} 23. Re1 {[%emt 0:00:01]} Ra1 {[%emt 0:00:05]} 24. Bd2 {[%emt 0:
00:12]} Rxe1+ 25. Bxe1 {[%emt 0:00:01]} Rc8 {[%emt 0:00:15]} 26. Bc3 {[%emt 0:
00:02]} Rd8 {[%emt 0:00:17]} 27. f3 {[%emt 0:00:04]} Rd1+ {[%emt 0:00:23]} 28.
Kf2 {[%emt 0:00:01]} Rf1+ {[%emt 0:00:01]} 29. Ke3 {[%emt 0:00:08]} Bg2 {
[%emt 0:00:01]} 30. Rxb7 {[%emt 0:00:15]} Rxf3+ {[%emt 0:00:02]} 31. Ke2 {
[%emt 0:00:01]} Rf2+ {[%emt 0:00:15]} 32. Kxf2 {[%emt 0:00:01]} Bxb7 {[%emt 0:
00:01]} 33. Bb4 {[%emt 0:00:01]} Bc8 {[%emt 0:00:19]} 34. Be7 {[%emt 0:00:06]}
Kh7 {[%emt 0:00:01]} 35. Ke3 {[%emt 0:00:02]} Kg6 {[%emt 0:00:01]} 36. b4 {
[%emt 0:00:08]} Kf5 {[%emt 0:00:01]} 37. Bf8 {[%emt 0:00:02]} g6 {[%emt 0:00:
11]} 38. Kd4 {[%emt 0:00:02]} h5 {[%emt 0:00:01]} 39. Bd6 {[%emt 0:00:22]} Ke6
{[%emt 0:00:13]} 40. Kc5 {[%emt 0:00:07]} Bb7 {[%emt 0:00:03]} 41. Kb6 {
[%emt 0:00:11]} Bg2 {[%emt 0:00:02]} 42. Kc7 {[%emt 0:00:02]} Bf1 {[%emt 0:00:
01]} 43. h4 {[%emt 0:00:06]} Be2 {[%emt 0:00:01]} 44. Kc6 {[%emt 0:00:07]} Bf3+
{[%emt 0:00:01]} 45. Kc5 {[%emt 0:00:03]} Kd7 {[%emt 0:00:01]} 46. b5 {[%emt 0:
00:01]} Kc8 {[%emt 0:00:02]} 47. Bf8 {[%emt 0:00:03]} Bg4 {[%emt 0:00:01]} 48.
Kb6 {[%emt 0:00:03]} Be6 {[%emt 0:00:02]} 49. Ka7 {[%emt 0:00:02]} Bc4 {
[%emt 0:00:01]} 1/2-1/2

[Event "10th Tal Memorial 2016 - Blitz"]
[Site "Moscow"]
[Date "2016.09.25"]
[Round "4"]
[White "Kramnik, Vladimir"]
[Black "Mamedyarov, Shakhriyar"]
[Result "0-1"]
[ECO "D03"]
[WhiteElo "2808"]
[BlackElo "2761"]
[Annotator "ChessBase"]
[PlyCount "92"]
[EventDate "2016.??.??"]
[EventType "tourn"]
[EventCountry "RUS"]
[SourceTitle "playchess.com"]
[Source "ChessBase"]
[TimeControl "180+2"]

1. d4 {[%emt 0:00:00]} d5 {[%emt 0:00:00]} 2. Nf3 {[%emt 0:00:01]} Nf6 {
[%emt 0:00:02]} 3. Bg5 {[%emt 0:00:01]} g6 {[%emt 0:00:12]} 4. c3 {[%emt 0:00:
03]} Bg7 {[%emt 0:00:01]} 5. Nbd2 {[%emt 0:00:01]} O-O {[%emt 0:00:02]} 6. e3 {
[%emt 0:00:01]} Nbd7 {[%emt 0:00:01]} 7. Be2 {[%emt 0:00:03]} Re8 {[%emt 0:00:
02]} 8. O-O {[%emt 0:00:03]} e5 {[%emt 0:00:01]} 9. a4 {[%emt 0:00:02]} a5 {
[%emt 0:00:05]} 10. h3 {[%emt 0:00:02]} c6 {[%emt 0:00:02]} 11. Rc1 {[%emt 0:
00:04]} Qe7 {[%emt 0:00:27]} 12. Qb3 {[%emt 0:00:13]} Qe6 {[%emt 0:00:20]} 13.
dxe5 {[%emt 0:00:10]} Nxe5 {[%emt 0:00:01]} 14. Nxe5 {[%emt 0:00:18]} Qxe5 {
[%emt 0:00:01]} 15. Nf3 {[%emt 0:00:01]} Qe7 {[%emt 0:00:14]} 16. c4 {[%emt 0:
00:05]} Be6 {[%emt 0:00:03]} 17. Nd4 {[%emt 0:00:19]} dxc4 {[%emt 0:00:03]} 18.
Bxc4 {[%emt 0:00:07]} Bxc4 {[%emt 0:00:01]} 19. Rxc4 {[%emt 0:00:11]} h6 {
[%emt 0:00:03]} 20. Bxf6 {[%emt 0:00:18]} Bxf6 {[%emt 0:00:02]} 21. Qc2 {
[%emt 0:00:01]} Rad8 {[%emt 0:00:03]} 22. Nb3 {[%emt 0:00:06]} Rd5 {[%emt 0:00:
07]} 23. e4 {[%emt 0:00:13]} Re5 {[%emt 0:00:15]} 24. Re1 {[%emt 0:00:01]} g5 {
[%emt 0:00:36]} 25. Re3 {[%emt 0:00:08]} Kh8 {[%emt 0:00:32]} 26. g3 {[%emt 0:
00:05]} Bg7 {[%emt 0:00:01]} 27. Nd4 {[%emt 0:00:13]} Rxe4 {[%emt 0:00:15]} 28.
Nxc6 {[%emt 0:00:04]} Rxc4 {[%emt 0:00:04]} 29. Qxc4 {[%emt 0:00:39]} Qd7 {
[%emt 0:00:01]} 30. Rxe8+ {[%emt 0:00:15]} Qxe8 {[%emt 0:00:01]} 31. Na7 {
[%emt 0:00:03]} Bxb2 {[%emt 0:00:11]} 32. Nb5 {[%emt 0:00:00]} Qe1+ {[%emt 0:
00:08]} 33. Kg2 {[%emt 0:00:01]} Qe6 {[%emt 0:00:02]} 34. Qxe6 {[%emt 0:00:05]}
fxe6 {[%emt 0:00:01]} 35. Kf3 {[%emt 0:00:02]} Kg7 {[%emt 0:00:01]} 36. Ke4 {
[%emt 0:00:01]} Kf6 {[%emt 0:00:01]} 37. Nd6 {[%emt 0:00:02]} b6 {[%emt 0:00:
03]} 38. Nc4 {[%emt 0:00:01]} Bc3 {[%emt 0:00:04]} 39. Nxb6 {[%emt 0:00:01]}
Be1 {[%emt 0:00:01]} 40. Ke3 {[%emt 0:00:03]} Ke5 {[%emt 0:00:01]} 41. f4+ {
[%emt 0:00:02]} gxf4+ {[%emt 0:00:02]} 42. gxf4+ {[%emt 0:00:01]} Kd6 43. Ke4
Kc5 {[%emt 0:00:03]} 44. Nd7+ {[%emt 0:00:08]} Kb4 {[%emt 0:00:07]} 45. Ke5 {
[%emt 0:00:08]} Bd2 {[%emt 0:00:01]} 46. h4 {[%emt 0:00:02]} Kxa4 {[%emt 0:00:
02]} 0-1

[Event "10th Tal Memorial 2016 - Blitz"]
[Site "Moscow"]
[Date "2016.09.25"]
[Round "4"]
[White "Nepomniachtchi, Ian"]
[Black "Giri, Anish"]
[Result "1-0"]
[ECO "B90"]
[WhiteElo "2740"]
[BlackElo "2755"]
[Annotator "ChessBase"]
[PlyCount "65"]
[EventDate "2016.??.??"]
[EventType "tourn"]
[EventCountry "RUS"]
[SourceTitle "playchess.com"]
[Source "ChessBase"]
[TimeControl "180+2"]

1. e4 c5 2. Nf3 d6 3. d4 {[%emt 0:00:00]} cxd4 {[%emt 0:00:00]} 4. Nxd4 {
[%emt 0:00:01]} Nf6 {[%emt 0:00:00]} 5. Nc3 {[%emt 0:00:01]} a6 {[%emt 0:00:00]
} 6. h3 {[%emt 0:00:01]} e5 {[%emt 0:00:01]} 7. Nde2 {[%emt 0:00:01]} h5 {
[%emt 0:00:01]} 8. Ng1 {[%emt 0:00:00]} Nbd7 {[%emt 0:00:07]} 9. Nf3 {[%emt 0:
00:03]} b5 {[%emt 0:00:00]} 10. Ng5 {[%emt 0:00:01]} Bb7 {[%emt 0:00:04]} 11.
Bd3 {[%emt 0:00:01]} Be7 {[%emt 0:00:03]} 12. O-O {[%emt 0:00:02]} Nc5 {
[%emt 0:00:02]} 13. f4 {[%emt 0:00:05]} Qc7 {[%emt 0:00:05]} 14. a3 {[%emt 0:
00:04]} Rc8 {[%emt 0:00:05]} 15. Qe1 {[%emt 0:00:04]} O-O {[%emt 0:00:08]} 16.
Qg3 {[%emt 0:00:07]} Nfd7 {[%emt 0:00:20]} 17. Kh1 {[%emt 0:00:05]} Bf6 {
[%emt 0:00:08]} 18. f5 {[%emt 0:00:04]} Nxd3 {[%emt 0:00:21]} 19. cxd3 {
[%emt 0:00:01]} Nc5 {[%emt 0:00:07]} 20. Qf3 {[%emt 0:00:36]} Nb3 {[%emt 0:00:
14]} 21. Qxh5 {[%emt 0:00:02]} Bxg5 {[%emt 0:00:01]} 22. Bxg5 {[%emt 0:00:03]}
f6 {[%emt 0:00:00]} 23. Be3 {[%emt 0:01:26]} Nxa1 {[%emt 0:00:01]} 24. Rxa1 {
[%emt 0:00:01]} Qf7 {[%emt 0:00:05]} 25. Qg4 {[%emt 0:00:03]} d5 {[%emt 0:00:
12]} 26. exd5 {[%emt 0:00:01]} Bxd5 {[%emt 0:00:01]} 27. Re1 {[%emt 0:00:06]}
Rfd8 {[%emt 0:00:02]} 28. Bb6 {[%emt 0:00:40]} Rd6 {[%emt 0:00:08]} 29. Ba5 {
[%emt 0:00:01]} Bb7 {[%emt 0:00:03]} 30. Qg3 {[%emt 0:00:04]} Qd7 {[%emt 0:00:
01]} 31. Ne4 {[%emt 0:00:05]} Bxe4 {[%emt 0:00:01]} 32. dxe4 {[%emt 0:00:01]}
Rd1 {[%emt 0:00:02]} 33. Qb3+ {[%emt 0:00:01]} 1-0

[Event "10th Tal Memorial 2016 - Blitz"]
[Site "Moscow"]
[Date "2016.09.25"]
[Round "4"]
[White "Tomashevsky, Evgeny"]
[Black "Svidler, Peter"]
[Result "1-0"]
[ECO "A09"]
[WhiteElo "2731"]
[BlackElo "2745"]
[Annotator "ChessBase"]
[PlyCount "79"]
[EventDate "2016.??.??"]
[EventType "tourn"]
[EventCountry "RUS"]
[SourceTitle "playchess.com"]
[Source "ChessBase"]
[TimeControl "180+2"]

1. Nf3 {[%emt 0:00:00]} d5 {[%emt 0:00:00]} 2. c4 {[%emt 0:00:02]} d4 {[%emt 0:
00:00]} 3. g3 {[%emt 0:00:01]} Nc6 {[%emt 0:00:10]} 4. Bg2 {[%emt 0:00:01]} e5
{[%emt 0:00:01]} 5. d3 {[%emt 0:00:04]} Nf6 {[%emt 0:00:09]} 6. O-O {[%emt 0:
00:02]} a5 {[%emt 0:00:15]} 7. e3 {[%emt 0:00:04]} dxe3 {[%emt 0:00:01]} 8.
Bxe3 {[%emt 0:00:01]} Be7 {[%emt 0:00:01]} 9. Nc3 {[%emt 0:00:07]} O-O {
[%emt 0:00:01]} 10. d4 {[%emt 0:00:01]} exd4 {[%emt 0:00:01]} 11. Nxd4 {
[%emt 0:00:01]} Nxd4 {[%emt 0:00:01]} 12. Qxd4 {[%emt 0:00:08]} Qxd4 {[%emt 0:
00:12]} 13. Bxd4 {[%emt 0:00:01]} c6 {[%emt 0:00:01]} 14. b3 {[%emt 0:00:39]}
Be6 {[%emt 0:00:03]} 15. Rfd1 {[%emt 0:00:05]} Rfd8 {[%emt 0:00:15]} 16. Bb6 {
[%emt 0:00:04]} Rxd1+ 17. Rxd1 {[%emt 0:00:01]} Nd7 {[%emt 0:00:06]} 18. Be3 {
[%emt 0:00:35]} Nc5 {[%emt 0:00:19]} 19. Bf3 {[%emt 0:00:21]} Bf8 {[%emt 0:00:
11]} 20. h4 {[%emt 0:00:03]} g6 {[%emt 0:00:44]} 21. h5 {[%emt 0:00:14]} a4 {
[%emt 0:00:01]} 22. Bxc5 {[%emt 0:00:07]} Bxc5 {[%emt 0:00:01]} 23. Nxa4 {
[%emt 0:00:02]} Bb4 {[%emt 0:00:01]} 24. Kg2 {[%emt 0:00:40]} Kf8 {[%emt 0:00:
04]} 25. hxg6 {[%emt 0:00:03]} hxg6 {[%emt 0:00:01]} 26. Rd3 {[%emt 0:00:10]}
Ke7 {[%emt 0:00:02]} 27. Re3 {[%emt 0:00:04]} Kf6 {[%emt 0:00:10]} 28. Rd3 {
[%emt 0:00:02]} Ke7 {[%emt 0:00:02]} 29. Re3 {[%emt 0:00:01]} Kf6 {[%emt 0:00:
06]} 30. Rd3 {[%emt 0:00:02]} Ra5 {[%emt 0:00:30]} 31. Be4 {[%emt 0:00:09]} b5
{[%emt 0:00:05]} 32. cxb5 {[%emt 0:00:01]} cxb5 {[%emt 0:00:01]} 33. Nb6 {
[%emt 0:00:01]} Rxa2 {[%emt 0:00:08]} 34. Nd5+ {[%emt 0:00:01]} Bxd5 {[%emt 0:
00:01]} 35. Bxd5 {[%emt 0:00:01]} Kg7 {[%emt 0:00:06]} 36. Rf3 {[%emt 0:00:03]}
f5 {[%emt 0:00:01]} 37. g4 {[%emt 0:00:02]} fxg4 {[%emt 0:00:03]} 38. Rf4 {
[%emt 0:00:02]} Bc5 {[%emt 0:00:01]} 39. b4 {[%emt 0:00:01]} Bb6 {[%emt 0:00:
05]} 40. Bxa2 {[%emt 0:00:02]} 1-0

[Event "10th Tal Memorial 2016 - Blitz"]
[Site "Moscow"]
[Date "2016.09.25"]
[Round "5"]
[White "Anand, Viswanathan"]
[Black "Tomashevsky, Evgeny"]
[Result "1/2-1/2"]
[ECO "C84"]
[WhiteElo "2776"]
[BlackElo "2731"]
[Annotator "ChessBase"]
[PlyCount "84"]
[EventDate "2016.??.??"]
[EventType "tourn"]
[EventCountry "RUS"]
[SourceTitle "playchess.com"]
[Source "ChessBase"]
[TimeControl "180+2"]

1. e4 {[%emt 0:00:00]} e5 {[%emt 0:00:00]} 2. Nf3 {[%emt 0:00:00]} Nc6 {
[%emt 0:00:00]} 3. Bb5 {[%emt 0:00:02]} a6 {[%emt 0:00:02]} 4. Ba4 {[%emt 0:00:
01]} Nf6 {[%emt 0:00:01]} 5. O-O {[%emt 0:00:01]} Be7 {[%emt 0:00:01]} 6. d3 {
[%emt 0:00:02]} b5 {[%emt 0:00:10]} 7. Bb3 {[%emt 0:00:01]} d6 {[%emt 0:00:04]}
8. a4 {[%emt 0:00:04]} Bd7 {[%emt 0:00:02]} 9. c3 {[%emt 0:00:05]} O-O {
[%emt 0:00:03]} 10. Bc2 {[%emt 0:00:01]} Re8 {[%emt 0:00:33]} 11. Re1 {[%emt 0:
00:02]} Bf8 {[%emt 0:00:01]} 12. Bg5 {[%emt 0:00:02]} h6 {[%emt 0:00:01]} 13.
Bh4 {[%emt 0:00:01]} Be7 {[%emt 0:00:40]} 14. Nbd2 {[%emt 0:00:05]} Nh5 {
[%emt 0:00:21]} 15. axb5 {[%emt 0:00:01]} axb5 {[%emt 0:00:01]} 16. Rxa8 {
[%emt 0:00:01]} Qxa8 {[%emt 0:00:01]} 17. Bxe7 {[%emt 0:00:02]} Rxe7 {[%emt 0:
00:01]} 18. d4 {[%emt 0:00:03]} Nf6 {[%emt 0:00:09]} 19. d5 {[%emt 0:00:03]}
Nb8 {[%emt 0:00:14]} 20. Qa1 {[%emt 0:00:02]} Qb7 {[%emt 0:00:02]} 21. Qa5 {
[%emt 0:00:08]} c6 {[%emt 0:00:06]} 22. dxc6 {[%emt 0:00:46]} Nxc6 {[%emt 0:00:
01]} 23. Qa2 {[%emt 0:00:01]} Be6 {[%emt 0:00:38]} 24. Bb3 {[%emt 0:00:06]}
Bxb3 {[%emt 0:00:16]} 25. Qxb3 {[%emt 0:00:01]} Rd7 {[%emt 0:00:01]} 26. h3 {
[%emt 0:00:08]} Na5 {[%emt 0:00:05]} 27. Qa2 {[%emt 0:00:05]} Nc6 {[%emt 0:00:
01]} 28. Nh2 {[%emt 0:00:10]} Ne7 {[%emt 0:00:10]} 29. Ng4 {[%emt 0:00:03]}
Nxg4 {[%emt 0:00:02]} 30. hxg4 {[%emt 0:00:01]} d5 {[%emt 0:00:01]} 31. exd5 {
[%emt 0:00:12]} Qxd5 {[%emt 0:00:00]} 32. Qxd5 {[%emt 0:00:01]} Rxd5 {[%emt 0:
00:01]} 33. Ne4 {[%emt 0:00:02]} Nc8 {[%emt 0:00:05]} 34. Ra1 {[%emt 0:00:15]}
Nb6 {[%emt 0:00:01]} 35. b3 {[%emt 0:00:06]} Nd7 {[%emt 0:00:08]} 36. Ra8+ {
[%emt 0:00:07]} Kh7 {[%emt 0:00:01]} 37. Rd8 {[%emt 0:00:08]} Nb6 {[%emt 0:00:
01]} 38. Rf8 {[%emt 0:00:15]} Kg6 {[%emt 0:00:02]} 39. f3 {[%emt 0:00:01]} Rd1+
{[%emt 0:00:03]} 40. Kh2 {[%emt 0:00:05]} Nd5 {[%emt 0:00:01]} 41. Rb8 {
[%emt 0:00:06]} Rd3 {[%emt 0:00:07]} 42. Rxb5 {[%emt 0:00:37]} Nxc3 {[%emt 0:
00:01]} 1/2-1/2

[Event "10th Tal Memorial 2016 - Blitz"]
[Site "Moscow"]
[Date "2016.09.25"]
[Round "5"]
[White "Li, Chao b"]
[Black "Nepomniachtchi, Ian"]
[Result "1/2-1/2"]
[ECO "D85"]
[WhiteElo "2746"]
[BlackElo "2740"]
[Annotator "ChessBase"]
[PlyCount "66"]
[EventDate "2016.??.??"]
[EventType "tourn"]
[EventCountry "RUS"]
[SourceTitle "playchess.com"]
[Source "ChessBase"]
[TimeControl "180+2"]

1. d4 {[%emt 0:00:00]} Nf6 {[%emt 0:00:00]} 2. c4 {[%emt 0:00:01]} g6 {[%emt 0:
00:00]} 3. Nc3 {[%emt 0:00:01]} d5 {[%emt 0:00:00]} 4. cxd5 {[%emt 0:00:03]}
Nxd5 {[%emt 0:00:02]} 5. g3 {[%emt 0:00:01]} Bg7 {[%emt 0:00:01]} 6. Bg2 {
[%emt 0:00:02]} Nxc3 {[%emt 0:00:01]} 7. bxc3 {[%emt 0:00:01]} O-O {[%emt 0:00:
02]} 8. Nf3 {[%emt 0:00:02]} c5 {[%emt 0:00:01]} 9. O-O {[%emt 0:00:01]} Nc6 {
[%emt 0:00:01]} 10. Be3 {[%emt 0:00:03]} Be6 {[%emt 0:00:08]} 11. Ng5 {[%emt 0:
00:45]} Bd5 {[%emt 0:00:05]} 12. dxc5 {[%emt 0:00:05]} Bxg2 {[%emt 0:00:12]}
13. Qxd8 {[%emt 0:00:04]} Rfxd8 {[%emt 0:00:01]} 14. Kxg2 {[%emt 0:00:02]} Bxc3
{[%emt 0:00:02]} 15. Rab1 {[%emt 0:00:01]} Rd7 {[%emt 0:00:06]} 16. Rb3 {
[%emt 0:00:02]} Bd4 {[%emt 0:00:05]} 17. Rfb1 {[%emt 0:00:10]} Bxe3 {[%emt 0:
00:05]} 18. Rxe3 {[%emt 0:00:01]} Rc8 {[%emt 0:00:04]} 19. g4 {[%emt 0:00:10]}
Nb8 {[%emt 0:00:15]} 20. Reb3 {[%emt 0:00:14]} Rxc5 {[%emt 0:00:23]} 21. Rxb7 {
[%emt 0:00:04]} Rxg5 {[%emt 0:00:05]} 22. Rxb8+ {[%emt 0:00:02]} Kg7 {[%emt 0:
00:00]} 23. h3 {[%emt 0:00:13]} Ra5 {[%emt 0:00:04]} 24. R1b2 {[%emt 0:00:07]}
a6 {[%emt 0:00:23]} 25. e3 {[%emt 0:00:03]} h5 {[%emt 0:00:02]} 26. Kf3 {
[%emt 0:00:01]} Rd6 {[%emt 0:00:16]} 27. Rc2 {[%emt 0:00:03]} Kf6 {[%emt 0:00:
09]} 28. Rb4 {[%emt 0:00:08]} hxg4+ {[%emt 0:00:05]} 29. hxg4 {[%emt 0:00:01]}
g5 {[%emt 0:00:26]} 30. Rbc4 {[%emt 0:00:18]} Rdd5 {[%emt 0:00:06]} 31. Kg3 {
[%emt 0:00:08]} Ra3 {[%emt 0:00:04]} 32. Rb4 {[%emt 0:00:09]} Rb5 {[%emt 0:00:
15]} 33. Rxb5 {[%emt 0:00:02]} axb5 {[%emt 0:00:01]} 1/2-1/2

[Event "10th Tal Memorial 2016 - Blitz"]
[Site "Moscow"]
[Date "2016.09.25"]
[Round "5"]
[White "Mamedyarov, Shakhriyar"]
[Black "Aronian, Levon"]
[Result "1-0"]
[ECO "D37"]
[WhiteElo "2761"]
[BlackElo "2795"]
[Annotator "ChessBase"]
[PlyCount "121"]
[EventDate "2016.??.??"]
[EventType "tourn"]
[EventCountry "RUS"]
[SourceTitle "playchess.com"]
[Source "ChessBase"]
[TimeControl "180+2"]

1. d4 {[%emt 0:00:00]} Nf6 {[%emt 0:00:00]} 2. c4 {[%emt 0:00:00]} e6 {[%emt 0:
00:00]} 3. Nf3 {[%emt 0:00:03]} d5 {[%emt 0:00:02]} 4. Nc3 {[%emt 0:00:01]}
Nbd7 {[%emt 0:00:01]} 5. Bf4 {[%emt 0:00:07]} dxc4 {[%emt 0:00:02]} 6. e3 {
[%emt 0:00:01]} b5 {[%emt 0:00:01]} 7. Nxb5 {[%emt 0:00:04]} Bb4+ {[%emt 0:00:
01]} 8. Nc3 {[%emt 0:00:02]} Nd5 {[%emt 0:00:02]} 9. Rc1 {[%emt 0:00:04]} Nxf4
{[%emt 0:00:39]} 10. exf4 {[%emt 0:00:01]} Nb6 {[%emt 0:00:01]} 11. Bxc4 {
[%emt 0:00:02]} O-O {[%emt 0:00:16]} 12. Be2 {[%emt 0:00:17]} Nd5 {[%emt 0:00:
19]} 13. g3 {[%emt 0:00:02]} c5 {[%emt 0:00:01]} 14. O-O {[%emt 0:00:10]} Bxc3
{[%emt 0:00:02]} 15. bxc3 {[%emt 0:00:01]} Qa5 {[%emt 0:00:01]} 16. Qd2 {
[%emt 0:00:10]} Rd8 {[%emt 0:00:13]} 17. Rfd1 {[%emt 0:00:05]} Bb7 {[%emt 0:00:
32]} 18. c4 {[%emt 0:00:19]} Nb4 {[%emt 0:00:17]} 19. Rb1 {[%emt 0:01:06]} Be4
{[%emt 0:00:17]} 20. Rb2 {[%emt 0:00:07]} Qa3 {[%emt 0:00:23]} 21. Rb3 {
[%emt 0:00:14]} Qxa2 {[%emt 0:00:05]} 22. Qxa2 {[%emt 0:00:39]} Nxa2 {[%emt 0:
00:01]} 23. dxc5 {[%emt 0:00:02]} Rxd1+ {[%emt 0:00:01]} 24. Bxd1 {[%emt 0:00:
01]} Rd8 {[%emt 0:00:00]} 25. Kg2 {[%emt 0:00:08]} h6 {[%emt 0:00:01]} 26. Re3
{[%emt 0:00:03]} Bc6 {[%emt 0:00:07]} 27. Bc2 {[%emt 0:00:01]} Nb4 {[%emt 0:00:
09]} 28. Be4 {[%emt 0:00:02]} Bxe4 {[%emt 0:00:03]} 29. Rxe4 {[%emt 0:00:00]}
Rc8 {[%emt 0:00:01]} 30. Rd4 {[%emt 0:00:03]} Rxc5 {[%emt 0:00:11]} 31. Rd8+ {
[%emt 0:00:01]} Kh7 {[%emt 0:00:01]} 32. Rd7 {[%emt 0:00:00]} f6 {[%emt 0:00:
06]} 33. Nd4 {[%emt 0:00:01]} e5 {[%emt 0:00:07]} 34. Ne6 {[%emt 0:00:01]} Rxc4
{[%emt 0:00:01]} 35. Rxg7+ {[%emt 0:00:04]} Kh8 {[%emt 0:00:00]} 36. Rxa7 {
[%emt 0:00:01]} Nd3 {[%emt 0:00:03]} 37. Rd7 {[%emt 0:00:02]} e4 {[%emt 0:00:
02]} 38. Rd4 {[%emt 0:00:07]} Rc2 {[%emt 0:00:01]} 39. Rxe4 {[%emt 0:00:01]}
Nxf2 40. Rd4 Ng4+ {[%emt 0:00:06]} 41. Kf3 {[%emt 0:00:02]} Nxh2+ {[%emt 0:00:
02]} 42. Ke4 {[%emt 0:00:01]} Ng4 {[%emt 0:00:02]} 43. Kf5 {[%emt 0:00:01]} h5
{[%emt 0:00:01]} 44. Kg6 {[%emt 0:00:02]} Rc8 {[%emt 0:00:01]} 45. Nd8 {
[%emt 0:00:04]} Kg8 {[%emt 0:00:04]} 46. Kxh5 {[%emt 0:00:04]} Ne3 {[%emt 0:00:
01]} 47. Kg6 {[%emt 0:00:01]} f5 {[%emt 0:00:04]} 48. Ne6 {[%emt 0:00:04]} Re8
{[%emt 0:00:02]} 49. Ng7 {[%emt 0:00:02]} Rf8 {[%emt 0:00:01]} 50. Nh5 {
[%emt 0:00:01]} Ng4 {[%emt 0:00:02]} 51. Rd5 {[%emt 0:00:01]} Kh8 {[%emt 0:00:
01]} 52. Kg5 {[%emt 0:00:04]} Rg8+ {[%emt 0:00:01]} 53. Kh4 {[%emt 0:00:03]}
Ne3 {[%emt 0:00:01]} 54. Rd3 {[%emt 0:00:00]} Ng4 {[%emt 0:00:05]} 55. Rc3 {
[%emt 0:00:02]} Kh7 {[%emt 0:00:02]} 56. Rc5 {[%emt 0:00:01]} Kg6 {[%emt 0:00:
01]} 57. Rc6+ {[%emt 0:00:01]} Kh7 {[%emt 0:00:01]} 58. Nf6+ {[%emt 0:00:01]}
Nxf6 {[%emt 0:00:02]} 59. Rxf6 {[%emt 0:00:01]} Rg4+ {[%emt 0:00:04]} 60. Kh3 {
[%emt 0:00:01]} Rg7 {[%emt 0:00:01]} 61. Rxf5 {[%emt 0:00:01]} 1-0

[Event "10th Tal Memorial 2016 - Blitz"]
[Site "Moscow"]
[Date "2016.09.25"]
[Round "5"]
[White "Svidler, Peter"]
[Black "Gelfand, Boris"]
[Result "1-0"]
[ECO "A06"]
[WhiteElo "2745"]
[BlackElo "2743"]
[Annotator "ChessBase"]
[PlyCount "97"]
[EventDate "2016.??.??"]
[EventType "tourn"]
[EventCountry "RUS"]
[SourceTitle "playchess.com"]
[Source "ChessBase"]
[TimeControl "180+2"]

1. Nf3 d5 2. g3 g6 3. c4 {[%emt 0:00:03]} dxc4 4. Na3 Bg7 {[%emt 0:00:06]} 5.
Nxc4 Nc6 6. Bg2 {[%emt 0:00:09]} e5 {[%emt 0:00:02]} 7. d3 {[%emt 0:00:06]}
Nge7 {[%emt 0:00:02]} 8. O-O {[%emt 0:00:03]} O-O {[%emt 0:00:02]} 9. Rb1 {
[%emt 0:00:02]} Be6 {[%emt 0:00:07]} 10. b4 {[%emt 0:00:06]} b5 {[%emt 0:00:59]
} 11. Na3 {[%emt 0:00:01]} Bxa2 {[%emt 0:00:10]} 12. Rb2 {[%emt 0:00:01]} Be6 {
[%emt 0:00:02]} 13. Nxb5 {[%emt 0:00:19]} Rb8 {[%emt 0:00:34]} 14. Qa4 {
[%emt 0:00:17]} a6 {[%emt 0:00:17]} 15. Nc3 {[%emt 0:00:04]} Bd7 {[%emt 0:00:
20]} 16. Qa3 {[%emt 0:00:07]} Nf5 {[%emt 0:00:07]} 17. Ne4 {[%emt 0:00:06]}
Ncd4 {[%emt 0:00:04]} 18. Nxd4 {[%emt 0:00:06]} Nxd4 {[%emt 0:00:01]} 19. Bg5 {
[%emt 0:00:04]} f6 {[%emt 0:00:03]} 20. Be3 {[%emt 0:00:01]} Bb5 {[%emt 0:00:
02]} 21. Nc5 {[%emt 0:00:06]} Rb6 {[%emt 0:00:04]} 22. Bxd4 {[%emt 0:00:04]}
Qxd4 {[%emt 0:00:02]} 23. Qa2+ {[%emt 0:00:01]} Kh8 {[%emt 0:00:01]} 24. Rc1 {
[%emt 0:00:21]} f5 {[%emt 0:00:10]} 25. e3 {[%emt 0:00:04]} Qd6 {[%emt 0:00:01]
} 26. Bd5 {[%emt 0:00:08]} Re8 {[%emt 0:00:05]} 27. Rbc2 {[%emt 0:00:05]} c6 {
[%emt 0:00:05]} 28. Bc4 {[%emt 0:00:03]} Rbb8 {[%emt 0:00:10]} 29. Bxb5 axb5
30. Qb3 Rbc8 31. Ra2 {[%emt 0:00:20]} Qd5 {[%emt 0:00:05]} 32. Qxd5 cxd5 33.
Ra5 {[%emt 0:00:14]} f4 {[%emt 0:00:03]} 34. e4 {[%emt 0:00:06]} dxe4 35. dxe4
Red8 {[%emt 0:00:07]} 36. Rxb5 {[%emt 0:00:03]} f3 {[%emt 0:00:02]} 37. h4 {
[%emt 0:00:02]} Bh6 {[%emt 0:00:10]} 38. Rc3 {[%emt 0:00:02]} Rd1+ 39. Kh2 Rf8
{[%emt 0:00:04]} 40. Ne6 {[%emt 0:00:02]} Re8 {[%emt 0:00:01]} 41. Nc7 {
[%emt 0:00:37]} Rf8 {[%emt 0:00:02]} 42. Ne6 Re8 43. Rb6 {[%emt 0:00:17]} Rb1 {
[%emt 0:00:08]} 44. Rxf3 {[%emt 0:00:02]} Bd2 {[%emt 0:00:02]} 45. b5 Kg8 46.
Nc7 {[%emt 0:00:06]} Rc8 {[%emt 0:00:05]} 47. Nd5 {[%emt 0:00:01]} Rcc1 {
[%emt 0:00:02]} 48. Nf6+ {[%emt 0:00:08]} Kg7 49. Rb7+ 1-0